[Event "Early-Titled-Tuesday-Blitz-February-20-2024"]
[Site "Chess.com"]
[Date "2024.02.20"]
[Round "5"]
[White "OparinGrigoriy"]
[Black "Elsa167"]
[Result "1-0"]
[WhiteElo "3017"]
[BlackElo "2893"]
[TimeControl "180+1"]
[EndTime "8:56:36 PST"]
[Termination "OparinGrigoriy won on time"]

1. c4 {[%clk 0:03:00.9]} 1... e6 {[%clk 0:02:58.7]} 2. Nc3 {[%clk 0:03:01.5]}
2... d5 {[%clk 0:02:59]} 3. d4 {[%clk 0:03:02.2]} 3... Nf6 {[%clk 0:02:58.9]} 4.
cxd5 {[%clk 0:03:02.8]} 4... exd5 {[%clk 0:02:59]} 5. Bg5 {[%clk 0:03:03.4]}
5... Be7 {[%clk 0:02:59.2]} 6. e3 {[%clk 0:03:03.8]} 6... O-O {[%clk 0:02:59.3]}
7. Bd3 {[%clk 0:03:03.2]} 7... Re8 {[%clk 0:02:59.5]} 8. h3 {[%clk 0:03:00.3]}
8... h6 {[%clk 0:02:56.4]} 9. Bf4 {[%clk 0:03:00.3]} 9... c5 {[%clk 0:02:56.2]}
10. Nf3 {[%clk 0:02:57.4]} 10... Nc6 {[%clk 0:02:53.4]} 11. O-O {[%clk
0:02:56.5]} 11... cxd4 {[%clk 0:02:45.7]} 12. exd4 {[%clk 0:02:57.4]} 12... Bd6
{[%clk 0:02:24.2]} 13. Bxd6 {[%clk 0:02:57.6]} 13... Qxd6 {[%clk 0:02:25.1]} 14.
Re1 {[%clk 0:02:58.1]} 14... Bd7 {[%clk 0:02:24]} 15. Qd2 {[%clk 0:02:57.6]}
15... Rxe1+ {[%clk 0:02:21.3]} 16. Rxe1 {[%clk 0:02:58.5]} 16... Re8 {[%clk
0:02:21.5]} 17. Rxe8+ {[%clk 0:02:58]} 17... Bxe8 {[%clk 0:02:21.6]} 18. Qe3
{[%clk 0:02:58.9]} 18... Qe7 {[%clk 0:02:05.4]} 19. Ne5 {[%clk 0:02:57.7]} 19...
Qb4 {[%clk 0:01:50.3]} 20. Nxc6 {[%clk 0:02:46.9]} 20... Bxc6 {[%clk 0:01:50]}
21. Qd2 {[%clk 0:02:46.4]} 21... g6 {[%clk 0:01:34.4]} 22. Be2 {[%clk
0:02:44.7]} 22... Kg7 {[%clk 0:01:33.4]} 23. a3 {[%clk 0:02:44.1]} 23... Qb6
{[%clk 0:01:29.5]} 24. Bf3 {[%clk 0:02:44]} 24... Qb3 {[%clk 0:01:19.5]} 25. h4
{[%clk 0:02:41.2]} 25... Qb6 {[%clk 0:01:16.7]} 26. g3 {[%clk 0:02:41]} 26... h5
{[%clk 0:01:15.4]} 27. b4 {[%clk 0:02:39.4]} 27... a5 {[%clk 0:01:11.8]} 28. b5
{[%clk 0:02:37.6]} 28... Bd7 {[%clk 0:01:11.8]} 29. Qf4 {[%clk 0:02:15.1]} 29...
Bxb5 {[%clk 0:00:51.1]} 30. Nxd5 {[%clk 0:02:15.3]} 30... Nxd5 {[%clk
0:00:50.2]} 31. Bxd5 {[%clk 0:02:16.2]} 31... Be8 {[%clk 0:00:37.3]} 32. Qe5+
{[%clk 0:02:15.1]} 32... Kf8 {[%clk 0:00:37.1]} 33. Be4 {[%clk 0:02:11.9]} 33...
Qb2 {[%clk 0:00:28.6]} 34. Qxa5 {[%clk 0:02:06.6]} 34... b6 {[%clk 0:00:14.5]}
35. Qb4+ {[%clk 0:02:06.2]} 35... Qxb4 {[%clk 0:00:15]} 36. axb4 {[%clk
0:02:07.1]} 36... Ke7 {[%clk 0:00:15.6]} 37. Kg2 {[%clk 0:02:07]} 37... Ke6
{[%clk 0:00:16.3]} 38. Kf3 {[%clk 0:02:07.3]} 38... Kd6 {[%clk 0:00:15]} 39. Kf4
{[%clk 0:02:07.3]} 39... f6 {[%clk 0:00:15]} 40. Ke3 {[%clk 0:01:57.5]} 40...
Bf7 {[%clk 0:00:14.5]} 41. Bc2 {[%clk 0:01:57.6]} 41... Be8 {[%clk 0:00:14.3]}
42. Bb3 {[%clk 0:01:57.8]} 42... Ke7 {[%clk 0:00:12]} 43. f3 {[%clk 0:01:54.1]}
43... Kd6 {[%clk 0:00:09.8]} 44. g4 {[%clk 0:01:54]} 44... g5 {[%clk 0:00:09.2]}
45. hxg5 {[%clk 0:01:34.3]} 45... fxg5 {[%clk 0:00:09.5]} 46. gxh5 {[%clk
0:01:34]} 46... Bxh5 {[%clk 0:00:10.4]} 47. Kf2 {[%clk 0:01:34.7]} 47... Bg6
{[%clk 0:00:07.3]} 48. Kg3 {[%clk 0:01:33.7]} 48... Bf5 {[%clk 0:00:07.9]} 49.
Bf7 {[%clk 0:01:34.2]} 49... Bd7 {[%clk 0:00:07.5]} 50. Bc4 {[%clk 0:01:30.7]}
50... Bc8 {[%clk 0:00:07.7]} 51. Kf2 {[%clk 0:01:30.3]} 51... Bd7 {[%clk
0:00:07.6]} 52. Ke3 {[%clk 0:01:30.9]} 52... Bc8 {[%clk 0:00:07.5]} 53. Ke4
{[%clk 0:01:30.6]} 53... Bb7+ {[%clk 0:00:07.8]} 54. d5 {[%clk 0:01:30.3]} 54...
Bc8 {[%clk 0:00:07.9]} 55. Be2 {[%clk 0:01:27.2]} 55... Bd7 {[%clk 0:00:07.5]}
56. Kd4 {[%clk 0:01:23.7]} 56... Bf5 {[%clk 0:00:07.2]} 57. Bd1 {[%clk
0:01:22.6]} 57... Bh3 {[%clk 0:00:06.6]} 58. Bc2 {[%clk 0:01:20.7]} 58... Bc8
{[%clk 0:00:05.8]} 59. Bg6 {[%clk 0:01:08.5]} 59... Bd7 {[%clk 0:00:04.7]} 60.
Bh5 {[%clk 0:01:05.3]} 60... Bf5 {[%clk 0:00:03.1]} 61. Bg4 {[%clk 0:01:04.8]}
61... Bg6 {[%clk 0:00:03.3]} 62. Be6 {[%clk 0:01:01.6]} 62... Bc2 {[%clk
0:00:03.1]} 63. Ke3 {[%clk 0:00:57.5]} 63... Ke5 {[%clk 0:00:03]} 64. Kf2 {[%clk
0:00:57.6]} 64... Bb3 {[%clk 0:00:02.1]} 65. Kg3 {[%clk 0:00:57.7]} 65... Bxd5
{[%clk 0:00:02.5]} 66. Bxd5 {[%clk 0:00:55.3]} 66... Kxd5 {[%clk 0:00:03.4]} 67.
Kg4 {[%clk 0:00:55.9]} 67... Kc4 {[%clk 0:00:04.1]} 68. Kxg5 {[%clk 0:00:56.5]}
68... Kxb4 {[%clk 0:00:04.9]} 69. f4 {[%clk 0:00:57.4]} 69... b5 {[%clk
0:00:04.9]} 70. f5 {[%clk 0:00:58]} 70... Ka3 {[%clk 0:00:05.8]} 71. f6 {[%clk
0:00:58.7]} 1-0

[Event "Early-Titled-Tuesday-Blitz-February-20-2024"]
[Site "Chess.com"]
[Date "2024.02.20"]
[Round "5"]
[White "pooh2012"]
[Black "cristiano78"]
[Result "1-0"]
[WhiteElo "2541"]
[BlackElo "2283"]
[TimeControl "180+1"]
[EndTime "8:56:36 PST"]
[Termination "pooh2012 won by resignation"]

1. d4 {[%clk 0:03:00.9]} 1... Nf6 {[%clk 0:02:59.6]} 2. c4 {[%clk 0:02:44.8]}
2... g6 {[%clk 0:02:58.9]} 3. Nc3 {[%clk 0:02:43.6]} 3... Bg7 {[%clk 0:02:58.4]}
4. e4 {[%clk 0:02:26.4]} 4... d6 {[%clk 0:02:57.7]} 5. Nf3 {[%clk 0:02:26.7]}
5... O-O {[%clk 0:02:57.1]} 6. Be2 {[%clk 0:02:27.3]} 6... e5 {[%clk 0:02:52.7]}
7. Be3 {[%clk 0:02:27.5]} 7... Ng4 {[%clk 0:02:52]} 8. Bg5 {[%clk 0:02:27.2]}
8... f6 {[%clk 0:02:52.3]} 9. Bh4 {[%clk 0:02:27.7]} 9... Nd7 {[%clk 0:02:47.3]}
10. h3 {[%clk 0:02:07.2]} 10... Nh6 {[%clk 0:02:45.4]} 11. dxe5 {[%clk
0:02:06.2]} 11... Nxe5 {[%clk 0:02:40.7]} 12. Nd4 {[%clk 0:02:01]} 12... g5
{[%clk 0:02:34]} 13. Bg3 {[%clk 0:01:59.4]} 13... Bd7 {[%clk 0:02:31.4]} 14. Qb3
{[%clk 0:01:51.3]} 14... Bc6 {[%clk 0:02:24.2]} 15. Ne6 {[%clk 0:01:14.6]} 15...
Qd7 {[%clk 0:02:22.7]} 16. Nxf8 {[%clk 0:01:12.2]} 16... Rxf8 {[%clk 0:02:21]}
17. c5+ {[%clk 0:01:10.7]} 17... Kh8 {[%clk 0:02:20.7]} 18. Rd1 {[%clk
0:01:00.3]} 18... f5 {[%clk 0:02:16.1]} 19. cxd6 {[%clk 0:00:49.3]} 19... f4
{[%clk 0:02:11.1]} 20. dxc7 {[%clk 0:00:43]} 20... Qxc7 {[%clk 0:02:07.9]} 21.
Bh2 {[%clk 0:00:43.5]} 21... Qe7 {[%clk 0:01:47.5]} 22. f3 {[%clk 0:00:40.3]}
22... Ng8 {[%clk 0:01:30.7]} 23. Bg1 {[%clk 0:00:35.6]} 23... Nf6 {[%clk
0:01:26.8]} 24. Bxa7 {[%clk 0:00:32.4]} 24... Nh5 {[%clk 0:01:15.9]} 25. Bf2
{[%clk 0:00:31.4]} 25... Ng3 {[%clk 0:01:12.8]} 26. Bxg3 {[%clk 0:00:30.2]}
26... fxg3 {[%clk 0:01:12.9]} 27. Nd5 {[%clk 0:00:27.3]} 27... Bxd5 {[%clk
0:01:10.3]} 28. Rxd5 {[%clk 0:00:25.7]} 28... Ng6 {[%clk 0:01:08.6]} 29. O-O
{[%clk 0:00:15.9]} 29... Nf4 {[%clk 0:01:06.6]} 30. Rd2 {[%clk 0:00:15.5]} 30...
Bd4+ {[%clk 0:00:57.9]} 31. Kh1 {[%clk 0:00:14.2]} 31... Bf2 {[%clk 0:00:52.1]}
32. Bb5 {[%clk 0:00:11.4]} 32... Qg7 {[%clk 0:00:47.5]} 33. Qc3 {[%clk
0:00:11.3]} 33... Qxc3 {[%clk 0:00:46.3]} 34. bxc3 {[%clk 0:00:12.2]} 34... Rf6
{[%clk 0:00:45.7]} 35. c4 {[%clk 0:00:10.6]} 35... Rh6 {[%clk 0:00:45.6]} 36.
Rfxf2 {[%clk 0:00:10.3]} 36... gxf2 {[%clk 0:00:45.4]} 37. Rxf2 {[%clk
0:00:10.9]} 37... Rd6 {[%clk 0:00:44.4]} 38. Kh2 {[%clk 0:00:10]} 38... Kg7
{[%clk 0:00:43.9]} 39. g3 {[%clk 0:00:10]} 39... Ng6 {[%clk 0:00:44]} 40. f4
{[%clk 0:00:09.2]} 40... gxf4 {[%clk 0:00:44]} 41. gxf4 {[%clk 0:00:10.1]} 41...
Rd3 {[%clk 0:00:42.5]} 42. e5 {[%clk 0:00:09.2]} 42... Ne7 {[%clk 0:00:38.2]}
43. f5 {[%clk 0:00:08.7]} 43... Nc6 {[%clk 0:00:36.6]} 44. f6+ {[%clk
0:00:08.1]} 44... Kf8 {[%clk 0:00:36.7]} 45. Bxc6 {[%clk 0:00:08.2]} 45... bxc6
{[%clk 0:00:36.7]} 46. e6 {[%clk 0:00:08.9]} 46... Re3 {[%clk 0:00:36.6]} 47.
e7+ {[%clk 0:00:08.6]} 47... Kf7 {[%clk 0:00:37.1]} 48. Kg2 {[%clk 0:00:06.8]}
48... Re6 {[%clk 0:00:35.4]} 49. a4 {[%clk 0:00:06.5]} 49... Re4 {[%clk
0:00:35.6]} 50. a5 {[%clk 0:00:06.5]} 50... Rxc4 {[%clk 0:00:35.6]} 51. Re2
{[%clk 0:00:06.5]} 51... Kxf6 {[%clk 0:00:30.4]} 52. e8=Q {[%clk 0:00:06]} 52...
Rd4 {[%clk 0:00:29.5]} 53. Qh8+ {[%clk 0:00:05.6]} 1-0

[Event "Early-Titled-Tuesday-Blitz-February-20-2024"]
[Site "Chess.com"]
[Date "2024.02.20"]
[Round "5"]
[White "ukchessbomber"]
[Black "Muracle"]
[Result "0-1"]
[WhiteElo "2592"]
[BlackElo "2486"]
[TimeControl "180+1"]
[EndTime "8:56:37 PST"]
[Termination "Muracle won by resignation"]

1. a3 {[%clk 0:03:00.9]} 1... e5 {[%clk 0:02:50.2]} 2. a4 {[%clk 0:03:01.8]}
2... Nf6 {[%clk 0:02:43.8]} 3. a5 {[%clk 0:03:02.7]} 3... d5 {[%clk 0:02:42.5]}
4. d3 {[%clk 0:03:03.6]} 4... Bd6 {[%clk 0:02:41.7]} 5. e3 {[%clk 0:03:04.1]}
5... c6 {[%clk 0:02:41.6]} 6. g3 {[%clk 0:03:04.2]} 6... O-O {[%clk 0:02:42.2]}
7. Bg2 {[%clk 0:03:04.4]} 7... Bg4 {[%clk 0:02:42.5]} 8. Ne2 {[%clk 0:03:04.7]}
8... Nbd7 {[%clk 0:02:42.4]} 9. O-O {[%clk 0:03:05.1]} 9... Re8 {[%clk
0:02:41.2]} 10. Bd2 {[%clk 0:03:04.4]} 10... Qc7 {[%clk 0:02:28.4]} 11. c4
{[%clk 0:02:56.5]} 11... e4 {[%clk 0:02:26.1]} 12. dxe4 {[%clk 0:02:49.1]} 12...
dxe4 {[%clk 0:02:27]} 13. Nbc3 {[%clk 0:02:47.2]} 13... Rad8 {[%clk 0:02:20.8]}
14. Qc2 {[%clk 0:02:46.9]} 14... Nc5 {[%clk 0:02:05.9]} 15. b4 {[%clk
0:02:47.2]} 15... Nd3 {[%clk 0:02:06.3]} 16. b5 {[%clk 0:02:47.7]} 16... Bf3
{[%clk 0:01:58.1]} 17. Bxf3 {[%clk 0:02:45.9]} 17... exf3 {[%clk 0:01:59]} 18.
Qxd3 {[%clk 0:02:37]} 18... Bxg3 {[%clk 0:01:53.9]} 19. Nd4 {[%clk 0:02:11.7]}
19... Bxh2+ {[%clk 0:01:42.4]} 20. Kh1 {[%clk 0:02:12]} 20... c5 {[%clk
0:01:15.6]} 21. Qf5 {[%clk 0:01:17]} 21... cxd4 {[%clk 0:01:13.5]} 22. Nd5
{[%clk 0:01:17.6]} 22... Nxd5 {[%clk 0:01:10.1]} 23. cxd5 {[%clk 0:01:18.5]}
23... Be5 {[%clk 0:00:38.5]} 24. Rac1 {[%clk 0:01:03.5]} 24... Qd6 {[%clk
0:00:38.9]} 25. e4 {[%clk 0:01:02.7]} 25... Qa3 {[%clk 0:00:30.5]} 26. Rg1
{[%clk 0:00:34.1]} 26... g6 {[%clk 0:00:28.4]} 27. Rg4 {[%clk 0:00:05.6]} 27...
Qd3 {[%clk 0:00:25.9]} 28. Rcg1 {[%clk 0:00:05.5]} 28... Qxd2 {[%clk 0:00:22.8]}
29. Qxf3 {[%clk 0:00:03.1]} 29... d3 {[%clk 0:00:21.1]} 30. Rh4 {[%clk
0:00:02.6]} 30... Qe2 {[%clk 0:00:16.1]} 31. Qh3 {[%clk 0:00:03.2]} 31... d2
{[%clk 0:00:11.5]} 32. Rxh7 {[%clk 0:00:02.9]} 32... d1=Q {[%clk 0:00:09.3]} 33.
Rxd1 {[%clk 0:00:03.6]} 33... Qxd1+ {[%clk 0:00:09.4]} 34. Kg2 {[%clk
0:00:04.5]} 34... Qe2 {[%clk 0:00:08.2]} 35. Rh4 {[%clk 0:00:04.6]} 35... Bf6
{[%clk 0:00:07.8]} 36. Rf4 {[%clk 0:00:05.2]} 36... Kg7 {[%clk 0:00:06.7]} 37.
d6 {[%clk 0:00:03.6]} 37... Rxe4 {[%clk 0:00:05.9]} 38. Rf3 {[%clk 0:00:03.2]}
38... Re6 {[%clk 0:00:05.5]} 39. d7 {[%clk 0:00:03]} 39... Rxd7 {[%clk 0:00:06]}
40. b6 {[%clk 0:00:03.9]} 40... axb6 {[%clk 0:00:05.7]} 41. axb6 {[%clk
0:00:04.8]} 41... Rd2 {[%clk 0:00:06]} 42. Qg3 {[%clk 0:00:01.4]} 42... Bd4
{[%clk 0:00:06.2]} 43. Qc7 {[%clk 0:00:01.5]} 43... Rf6 {[%clk 0:00:06.2]} 44.
Rxf6 {[%clk 0:00:01.6]} 44... Bxf6 {[%clk 0:00:06.9]} 45. Qf4 {[%clk 0:00:02.1]}
45... Qxf2+ {[%clk 0:00:07.1]} 46. Qxf2 {[%clk 0:00:02.3]} 46... Rxf2+ {[%clk
0:00:08]} 47. Kxf2 {[%clk 0:00:03.2]} 47... Bd4+ {[%clk 0:00:08.7]} 0-1

[Event "Early-Titled-Tuesday-Blitz-February-20-2024"]
[Site "Chess.com"]
[Date "2024.02.20"]
[Round "5"]
[White "the-do0on"]
[Black "LaPiToB"]
[Result "0-1"]
[WhiteElo "2035"]
[BlackElo "2294"]
[TimeControl "180+1"]
[EndTime "8:56:38 PST"]
[Termination "LaPiToB won on time"]

1. d4 {[%clk 0:03:00.9]} 1... Nf6 {[%clk 0:02:56.2]} 2. Bf4 {[%clk 0:02:55.1]}
2... d5 {[%clk 0:02:55.5]} 3. e3 {[%clk 0:02:55.2]} 3... c5 {[%clk 0:02:55.2]}
4. Nc3 {[%clk 0:02:55.1]} 4... e6 {[%clk 0:02:50.8]} 5. Nf3 {[%clk 0:02:44]}
5... Be7 {[%clk 0:02:47.4]} 6. Bb5+ {[%clk 0:02:43.1]} 6... Bd7 {[%clk
0:02:40.4]} 7. a4 {[%clk 0:02:42.3]} 7... O-O {[%clk 0:02:39.4]} 8. O-O {[%clk
0:02:38.3]} 8... a6 {[%clk 0:02:30.6]} 9. Bd3 {[%clk 0:02:23.1]} 9... Nc6 {[%clk
0:02:23.4]} 10. dxc5 {[%clk 0:02:22.1]} 10... Bxc5 {[%clk 0:02:21]} 11. e4
{[%clk 0:02:16.7]} 11... dxe4 {[%clk 0:02:17.4]} 12. Nxe4 {[%clk 0:02:16]} 12...
Nxe4 {[%clk 0:02:17.4]} 13. Bxe4 {[%clk 0:02:16.9]} 13... Qe7 {[%clk 0:02:14.7]}
14. Qd3 {[%clk 0:02:07.9]} 14... f5 {[%clk 0:02:06.8]} 15. Bxc6 {[%clk
0:02:06.1]} 15... Bxc6 {[%clk 0:02:07.7]} 16. Be5 {[%clk 0:02:00.5]} 16... Rad8
{[%clk 0:02:03.8]} 17. Qc3 {[%clk 0:01:59.2]} 17... Bb4 {[%clk 0:01:59.5]} 18.
Qe3 {[%clk 0:01:58.7]} 18... Bc5 {[%clk 0:01:50.9]} 19. Qc3 {[%clk 0:01:56.1]}
19... Be4 {[%clk 0:01:50.6]} 20. Rfd1 {[%clk 0:01:50.6]} 20... Bb4 {[%clk
0:01:48.6]} 21. Qb3 {[%clk 0:01:47.6]} 21... Bd5 {[%clk 0:01:40.6]} 22. c4
{[%clk 0:01:45]} 22... Be4 {[%clk 0:01:34.8]} 23. Nd4 {[%clk 0:01:39.7]} 23...
Rfe8 {[%clk 0:01:00]} 24. f3 {[%clk 0:01:10.9]} 24... Bc6 {[%clk 0:00:51.5]} 25.
Nxc6 {[%clk 0:01:08.2]} 25... bxc6 {[%clk 0:00:52.4]} 26. Rac1 {[%clk
0:00:56.5]} 26... Qc5+ {[%clk 0:00:50.6]} 27. Kf1 {[%clk 0:00:55.4]} 27... Qxe5
{[%clk 0:00:49.8]} 28. Qxb4 {[%clk 0:00:50.3]} 28... Qxh2 {[%clk 0:00:46.2]} 29.
Rxd8 {[%clk 0:00:47]} 29... Rxd8 {[%clk 0:00:45.4]} 30. Qe7 {[%clk 0:00:44.5]}
30... Qd6 {[%clk 0:00:33.1]} 31. Qxd6 {[%clk 0:00:29]} 31... Rxd6 {[%clk
0:00:34]} 32. b4 {[%clk 0:00:28.6]} 32... Kf7 {[%clk 0:00:33.3]} 33. Ke2 {[%clk
0:00:27.6]} 33... e5 {[%clk 0:00:32.7]} 34. b5 {[%clk 0:00:18.6]} 34... axb5
{[%clk 0:00:31]} 35. cxb5 {[%clk 0:00:19.5]} 35... cxb5 {[%clk 0:00:30.9]} 36.
axb5 {[%clk 0:00:20]} 36... Rb6 {[%clk 0:00:30.3]} 37. Rc5 {[%clk 0:00:17.6]}
37... Ke6 {[%clk 0:00:27.4]} 38. Kd3 {[%clk 0:00:15.3]} 38... g6 {[%clk
0:00:22.2]} 39. Kc4 {[%clk 0:00:15.1]} 39... Kd6 {[%clk 0:00:21.3]} 40. Rc8
{[%clk 0:00:13.3]} 40... h5 {[%clk 0:00:20]} 41. Rg8 {[%clk 0:00:11.8]} 41...
Kc7 {[%clk 0:00:18.6]} 42. Kc5 {[%clk 0:00:12.2]} 42... Re6 {[%clk 0:00:17.7]}
43. b6+ {[%clk 0:00:09.4]} 43... Kb7 {[%clk 0:00:17.9]} 44. Rg7+ {[%clk
0:00:09.6]} 44... Kb8 {[%clk 0:00:17.8]} 45. b7 {[%clk 0:00:06.3]} 45... e4
{[%clk 0:00:13.8]} 46. Kd5 {[%clk 0:00:03.5]} 46... Re8 {[%clk 0:00:10.3]} 47.
Kc6 {[%clk 0:00:03.2]} 47... e3 {[%clk 0:00:10]} 0-1

[Event "Early-Titled-Tuesday-Blitz-February-20-2024"]
[Site "Chess.com"]
[Date "2024.02.20"]
[Round "5"]
[White "MKlose11"]
[Black "mbojan"]
[Result "0-1"]
[WhiteElo "2626"]
[BlackElo "2860"]
[TimeControl "180+1"]
[EndTime "8:56:39 PST"]
[Termination "mbojan won by resignation"]

1. e4 {[%clk 0:02:43.9]} 1... c5 {[%clk 0:02:58.5]} 2. Nc3 {[%clk 0:02:40]} 2...
e6 {[%clk 0:02:58.3]} 3. g3 {[%clk 0:02:37.3]} 3... d5 {[%clk 0:02:52.8]} 4. Bg2
{[%clk 0:02:36.7]} 4... dxe4 {[%clk 0:02:50.5]} 5. Nxe4 {[%clk 0:02:37.6]} 5...
Nc6 {[%clk 0:02:49.8]} 6. Ne2 {[%clk 0:02:37.8]} 6... Be7 {[%clk 0:02:48.8]} 7.
O-O {[%clk 0:02:37.5]} 7... Nf6 {[%clk 0:02:49]} 8. N2c3 {[%clk 0:02:24.7]} 8...
O-O {[%clk 0:02:46.6]} 9. Nxf6+ {[%clk 0:02:21.4]} 9... Bxf6 {[%clk 0:02:46.9]}
10. Ne4 {[%clk 0:02:22.3]} 10... Be7 {[%clk 0:02:45.4]} 11. d3 {[%clk
0:02:22.8]} 11... Qd7 {[%clk 0:02:44.1]} 12. Qh5 {[%clk 0:02:19.2]} 12... b6
{[%clk 0:02:38.1]} 13. Ng5 {[%clk 0:02:17.4]} 13... Bxg5 {[%clk 0:02:34.1]} 14.
Bxg5 {[%clk 0:02:13.5]} 14... Bb7 {[%clk 0:02:34.1]} 15. Be4 {[%clk 0:02:09.6]}
15... h6 {[%clk 0:02:31.9]} 16. Be3 {[%clk 0:01:44.1]} 16... Rad8 {[%clk
0:02:21.7]} 17. a3 {[%clk 0:01:36.1]} 17... Qe7 {[%clk 0:01:13.6]} 18. Rad1
{[%clk 0:01:14.2]} 18... Nd4 {[%clk 0:01:12.7]} 19. Bxd4 {[%clk 0:01:01.6]}
19... Rxd4 {[%clk 0:01:13.6]} 20. Rfe1 {[%clk 0:00:59]} 20... Rfd8 {[%clk
0:01:12.8]} 21. Qf3 {[%clk 0:00:38.1]} 21... Bxe4 {[%clk 0:01:06.3]} 22. Rxe4
{[%clk 0:00:39]} 22... g6 {[%clk 0:00:55.1]} 23. Rxd4 {[%clk 0:00:38.2]} 23...
Rxd4 {[%clk 0:00:55.1]} 24. Re1 {[%clk 0:00:38.5]} 24... Kg7 {[%clk 0:00:55.2]}
25. h4 {[%clk 0:00:38.5]} 25... h5 {[%clk 0:00:55.4]} 26. Re4 {[%clk 0:00:38.4]}
26... Rd5 {[%clk 0:00:55.8]} 27. Rf4 {[%clk 0:00:37.3]} 27... Qd7 {[%clk
0:00:48.3]} 28. Re4 {[%clk 0:00:29.2]} 28... b5 {[%clk 0:00:46.5]} 29. a4 {[%clk
0:00:26.2]} 29... a6 {[%clk 0:00:46.5]} 30. axb5 {[%clk 0:00:26]} 30... axb5
{[%clk 0:00:47.4]} 31. b3 {[%clk 0:00:26.5]} 31... Rd4 {[%clk 0:00:45.4]} 32.
Qe3 {[%clk 0:00:20.4]} 32... b4 {[%clk 0:00:38.7]} 33. Rxd4 {[%clk 0:00:20.2]}
33... Qxd4 {[%clk 0:00:39.6]} 34. Qe2 {[%clk 0:00:20]} 34... Qc3 {[%clk
0:00:33.8]} 35. Kg2 {[%clk 0:00:19.7]} 35... Kf8 {[%clk 0:00:28.4]} 36. f4
{[%clk 0:00:19.7]} 36... Ke7 {[%clk 0:00:24.9]} 37. Kh2 {[%clk 0:00:20.1]} 37...
f5 {[%clk 0:00:24.7]} 38. Kh3 {[%clk 0:00:20.4]} 38... Kf6 {[%clk 0:00:25.1]}
39. Kg2 {[%clk 0:00:20.6]} 39... e5 {[%clk 0:00:24.5]} 40. fxe5+ {[%clk
0:00:21.5]} 40... Qxe5 {[%clk 0:00:24.8]} 41. Qf3 {[%clk 0:00:21.9]} 41... Qc3
{[%clk 0:00:23.6]} 42. Qc6+ {[%clk 0:00:20.8]} 42... Kg7 {[%clk 0:00:24.1]} 43.
Qd7+ {[%clk 0:00:15.7]} 43... Kh6 {[%clk 0:00:23.9]} 44. Kh3 {[%clk 0:00:15.9]}
44... Qe1 {[%clk 0:00:20]} 45. Kh2 {[%clk 0:00:15]} 45... f4 {[%clk 0:00:19]}
46. gxf4 {[%clk 0:00:12.6]} 46... Qxh4+ {[%clk 0:00:19.9]} 47. Kg2 {[%clk
0:00:12.2]} 47... Qxf4 {[%clk 0:00:15.8]} 48. Qe8 {[%clk 0:00:12.2]} 48... Qf6
{[%clk 0:00:14.4]} 49. Qc8 {[%clk 0:00:09.3]} 49... Qe5 {[%clk 0:00:13]} 50. Kf3
{[%clk 0:00:07.7]} 50... Qf5+ {[%clk 0:00:12.3]} 51. Qxf5 {[%clk 0:00:07.1]}
51... gxf5 {[%clk 0:00:13.2]} 52. Kf4 {[%clk 0:00:08]} 52... h4 {[%clk
0:00:13.9]} 53. Kxf5 {[%clk 0:00:07.4]} 53... h3 {[%clk 0:00:14.5]} 54. Kg4
{[%clk 0:00:08.3]} 54... h2 {[%clk 0:00:15.3]} 0-1

[Event "Early-Titled-Tuesday-Blitz-February-20-2024"]
[Site "Chess.com"]
[Date "2024.02.20"]
[Round "5"]
[White "deribas12345"]
[Black "DarkAlekhine"]
[Result "0-1"]
[WhiteElo "2614"]
[BlackElo "2844"]
[TimeControl "180+1"]
[EndTime "8:56:39 PST"]
[Termination "DarkAlekhine won on time"]

1. d4 {[%clk 0:03:00.9]} 1... Nf6 {[%clk 0:02:59.4]} 2. c4 {[%clk 0:03:01.2]}
2... e6 {[%clk 0:02:59.3]} 3. Nc3 {[%clk 0:03:01.5]} 3... Bb4 {[%clk 0:02:58.1]}
4. a3 {[%clk 0:03:01.6]} 4... Bxc3+ {[%clk 0:02:57.7]} 5. bxc3 {[%clk
0:03:02.5]} 5... b6 {[%clk 0:02:55.3]} 6. f3 {[%clk 0:03:02.7]} 6... Ba6 {[%clk
0:02:52.3]} 7. e4 {[%clk 0:03:02.4]} 7... Nc6 {[%clk 0:02:46.7]} 8. Bg5 {[%clk
0:03:00]} 8... h6 {[%clk 0:02:46.5]} 9. Bh4 {[%clk 0:02:59.6]} 9... Na5 {[%clk
0:02:46.3]} 10. Qa4 {[%clk 0:02:52.4]} 10... Qc8 {[%clk 0:02:21.1]} 11. e5
{[%clk 0:02:34.6]} 11... Ng8 {[%clk 0:02:16.8]} 12. Bd3 {[%clk 0:02:08.8]} 12...
c5 {[%clk 0:02:11.7]} 13. Ne2 {[%clk 0:01:35.7]} 13... Qc6 {[%clk 0:02:10.4]}
14. Qc2 {[%clk 0:01:26.7]} 14... Bxc4 {[%clk 0:02:07.3]} 15. Be4 {[%clk
0:01:19.4]} 15... Bd5 {[%clk 0:02:06.4]} 16. O-O {[%clk 0:01:19.5]} 16... Ne7
{[%clk 0:02:00.6]} 17. Rac1 {[%clk 0:01:11.1]} 17... Nc4 {[%clk 0:01:46.4]} 18.
Bf2 {[%clk 0:00:59.1]} 18... O-O {[%clk 0:01:43.1]} 19. Ng3 {[%clk 0:00:53.7]}
19... Rac8 {[%clk 0:01:37.4]} 20. a4 {[%clk 0:00:45.5]} 20... cxd4 {[%clk
0:01:26.6]} 21. cxd4 {[%clk 0:00:44.8]} 21... d6 {[%clk 0:01:25.6]} 22. Qe2
{[%clk 0:00:24.2]} 22... dxe5 {[%clk 0:01:21.5]} 23. dxe5 {[%clk 0:00:24.3]}
23... Qxa4 {[%clk 0:01:19.2]} 24. Ra1 {[%clk 0:00:19.1]} 24... Qd7 {[%clk
0:01:19.2]} 25. Rfd1 {[%clk 0:00:19.1]} 25... Qb7 {[%clk 0:01:18.3]} 26. Nh5
{[%clk 0:00:17.1]} 26... Rfd8 {[%clk 0:01:06.3]} 27. Kh1 {[%clk 0:00:15.9]}
27... a5 {[%clk 0:00:55.5]} 28. Bh4 {[%clk 0:00:15.7]} 28... Bxe4 {[%clk
0:00:50.7]} 29. fxe4 {[%clk 0:00:15.7]} 29... Rxd1+ {[%clk 0:00:50.8]} 30. Rxd1
{[%clk 0:00:16.6]} 30... Ng6 {[%clk 0:00:51.4]} 31. Bf6 {[%clk 0:00:16.9]} 31...
gxf6 {[%clk 0:00:40.7]} 32. Nxf6+ {[%clk 0:00:16.9]} 32... Kf8 {[%clk
0:00:36.5]} 33. Qh5 {[%clk 0:00:10.8]} 33... Ncxe5 {[%clk 0:00:33.8]} 34. Qxh6+
{[%clk 0:00:08.2]} 34... Ke7 {[%clk 0:00:34.2]} 35. Qg5 {[%clk 0:00:08.6]} 35...
Qa6 {[%clk 0:00:07.8]} 36. Nh7+ {[%clk 0:00:05]} 36... Ke8 {[%clk 0:00:06.6]}
37. Nf6+ {[%clk 0:00:02.9]} 37... Kf8 {[%clk 0:00:07]} 38. Qh6+ {[%clk
0:00:01.8]} 38... Ke7 {[%clk 0:00:07.3]} 39. Qg5 {[%clk 0:00:02.4]} 39... Qe2
{[%clk 0:00:06.4]} 40. Rg1 {[%clk 0:00:01.6]} 40... Kd6 {[%clk 0:00:05.5]} 41.
Nh5 {[%clk 0:00:01]} 41... Kc7 {[%clk 0:00:04.5]} 42. Qf6 {[%clk 0:00:01.9]}
42... Kb7 {[%clk 0:00:04.2]} 43. Nf4 {[%clk 0:00:01.4]} 43... Nxf4 {[%clk
0:00:03.8]} 0-1